[Event "*** Titled Tuesday Blitz"]
[Site "Chess.com"]
[Date "2021.03.16"]
[Round "7"]
[White "CSB7"]
[Black "ChessLover0108"]
[Result "0-1"]
[WhiteElo "2605"]
[BlackElo "2775"]
[TimeControl "180+1"]
[EndTime "11:18:17 PDT"]
[Termination "ChessLover0108 won by checkmate"]

1. Nf3 {[%clk 0:03:00.9]} 1... Nf6 {[%clk 0:02:59.2]} 2. g3 {[%clk 0:02:59.6]}
2... g6 {[%clk 0:02:59.7]} 3. Bg2 {[%clk 0:02:59.7]} 3... Bg7 {[%clk 0:03:00.6]}
4. O-O {[%clk 0:03:00.1]} 4... O-O {[%clk 0:03:01.5]} 5. d4 {[%clk 0:02:58.7]}
5... d5 {[%clk 0:03:02]} 6. c4 {[%clk 0:02:58.6]} 6... c6 {[%clk 0:03:02.1]} 7.
cxd5 {[%clk 0:02:57.3]} 7... cxd5 {[%clk 0:03:03]} 8. Ne5 {[%clk 0:02:57.1]}
8... Nc6 {[%clk 0:03:02.6]} 9. Nc3 {[%clk 0:02:51]} 9... Nd7 {[%clk 0:03:03]}
10. Nxd5 {[%clk 0:02:34.3]} 10... Ndxe5 {[%clk 0:02:52.1]} 11. dxe5 {[%clk
0:02:33.9]} 11... Bxe5 {[%clk 0:02:53]} 12. Bh6 {[%clk 0:02:28]} 12... Re8
{[%clk 0:02:48.4]} 13. Bf4 {[%clk 0:02:07.1]} 13... Bxf4 {[%clk 0:02:38.9]} 14.
Nxf4 {[%clk 0:02:03.9]} 14... Qa5 {[%clk 0:02:39.4]} 15. Bxc6 {[%clk 0:01:26.7]}
15... bxc6 {[%clk 0:02:40.3]} 16. Qc2 {[%clk 0:01:25.5]} 16... e5 {[%clk
0:02:16.7]} 17. Nd3 {[%clk 0:01:18]} 17... Bh3 {[%clk 0:02:11.6]} 18. Rfc1
{[%clk 0:01:11.7]} 18... Rad8 {[%clk 0:01:37.4]} 19. Qxc6 {[%clk 0:01:00.2]}
19... h5 {[%clk 0:01:34.3]} 20. Qc5 {[%clk 0:00:55.7]} 20... Qd2 {[%clk
0:01:29.6]} 21. Qe3 {[%clk 0:00:49.6]} 21... Qxe3 {[%clk 0:01:06.3]} 22. fxe3
{[%clk 0:00:50.5]} 22... Bg4 {[%clk 0:01:07.2]} 23. Kf2 {[%clk 0:00:48.6]} 23...
e4 {[%clk 0:01:04.7]} 24. Ne1 {[%clk 0:00:36.8]} 24... Rd2 {[%clk 0:01:01.9]}
25. Rc2 {[%clk 0:00:36.7]} 25... Red8 {[%clk 0:01:02.3]} 26. Rac1 {[%clk
0:00:19.1]} 26... g5 {[%clk 0:01:00.6]} 27. b4 {[%clk 0:00:12.8]} 27... R2d6
{[%clk 0:00:52.2]} 28. Rc5 {[%clk 0:00:09.2]} 28... Rf6+ {[%clk 0:00:48.2]} 29.
Kg1 {[%clk 0:00:08.3]} 29... Rd2 {[%clk 0:00:45.7]} 30. Rxg5+ {[%clk 0:00:07.5]}
30... Kh7 {[%clk 0:00:46.3]} 31. Ng2 {[%clk 0:00:06.2]} 31... Rxe2 {[%clk
0:00:37.4]} 32. Nf4 {[%clk 0:00:05]} 32... Rxa2 {[%clk 0:00:37.8]} 33. Nxh5
{[%clk 0:00:03.6]} 33... Bxh5 {[%clk 0:00:38.7]} 34. Rxh5+ {[%clk 0:00:03.8]}
34... Kg6 {[%clk 0:00:39.6]} 35. Rh4 {[%clk 0:00:03.6]} 35... Rff2 {[%clk
0:00:40.1]} 36. Rg4+ {[%clk 0:00:02.2]} 36... Kh7 {[%clk 0:00:35.2]} 37. Rh4+
{[%clk 0:00:02.1]} 37... Kg7 {[%clk 0:00:35.8]} 38. Rg4+ {[%clk 0:00:02.7]}
38... Kf8 {[%clk 0:00:33.8]} 39. Rc8+ {[%clk 0:00:02.3]} 39... Ke7 {[%clk
0:00:34.3]} 40. Rxe4+ {[%clk 0:00:02.9]} 40... Kd7 {[%clk 0:00:34.9]} 41. Rc1
{[%clk 0:00:03.5]} 41... Rg2+ {[%clk 0:00:35.1]} 42. Kf1 {[%clk 0:00:03.3]}
42... Rxh2 {[%clk 0:00:36]} 43. Rh4 {[%clk 0:00:03.4]} 43... Rhf2+ {[%clk
0:00:35.7]} 44. Ke1 {[%clk 0:00:02.5]} 44... Rg2 {[%clk 0:00:35.7]} 45. Kf1
{[%clk 0:00:02.2]} 45... Raf2+ {[%clk 0:00:36.3]} 46. Ke1 {[%clk 0:00:02.3]}
46... Rb2 {[%clk 0:00:37.2]} 47. Kf1 {[%clk 0:00:02.5]} 47... Rxg3 {[%clk
0:00:38.1]} 48. Rf4 {[%clk 0:00:02.9]} 48... Rh3 {[%clk 0:00:35.7]} 49. Rxf7+
{[%clk 0:00:02.3]} 49... Ke6 {[%clk 0:00:36.2]} 50. Rg7 {[%clk 0:00:02.9]} 50...
Kf6 {[%clk 0:00:32]} 51. Rg2 {[%clk 0:00:02]} 51... Rh1+ {[%clk 0:00:30.9]} 52.
Rg1 {[%clk 0:00:02.3]} 52... Rhh2 {[%clk 0:00:31.8]} 53. Ke1 {[%clk 0:00:02]}
53... Ke5 {[%clk 0:00:30.5]} 54. Rf1 {[%clk 0:00:02.1]} 54... Ke4 {[%clk
0:00:29.9]} 55. Kd1 {[%clk 0:00:02.6]} 55... Rbd2+ {[%clk 0:00:29.2]} 56. Ke1
{[%clk 0:00:02.4]} 56... Rhe2# {[%clk 0:00:30.1]} 0-1

[Event "*** Titled Tuesday Blitz"]
[Site "Chess.com"]
[Date "2021.03.16"]
[Round "7"]
[White "xberli"]
[Black "bakki78"]
[Result "0-1"]
[WhiteElo "2609"]
[BlackElo "2779"]
[TimeControl "180+1"]
[EndTime "11:18:19 PDT"]
[Termination "bakki78 won by resignation"]

1. e4 {[%clk 0:03:00.9]} 1... c5 {[%clk 0:02:59.3]} 2. Nf3 {[%clk 0:03:00.5]}
2... Nc6 {[%clk 0:02:59.2]} 3. d4 {[%clk 0:03:00.5]} 3... cxd4 {[%clk
0:02:59.6]} 4. Nxd4 {[%clk 0:03:01.4]} 4... Nf6 {[%clk 0:02:59.8]} 5. Nc3 {[%clk
0:03:02]} 5... d6 {[%clk 0:03:00.1]} 6. Bg5 {[%clk 0:03:01.3]} 6... e6 {[%clk
0:02:59.5]} 7. Qd2 {[%clk 0:03:01.5]} 7... a6 {[%clk 0:02:59.6]} 8. O-O-O {[%clk
0:03:01.6]} 8... Bd7 {[%clk 0:02:59.7]} 9. f4 {[%clk 0:03:00.3]} 9... Be7 {[%clk
0:02:59.2]} 10. Kb1 {[%clk 0:02:56.5]} 10... b5 {[%clk 0:02:58.6]} 11. Bxf6
{[%clk 0:02:48.4]} 11... Bxf6 {[%clk 0:02:41.5]} 12. Nxc6 {[%clk 0:02:41.1]}
12... Bxc6 {[%clk 0:02:41]} 13. Bd3 {[%clk 0:02:40.2]} 13... Qa5 {[%clk
0:02:12.9]} 14. Nd5 {[%clk 0:02:32.9]} 14... Qxd2 {[%clk 0:02:10.8]} 15. Nxf6+
{[%clk 0:02:32.4]} 15... gxf6 {[%clk 0:02:10.7]} 16. Rxd2 {[%clk 0:02:33.3]}
16... Ke7 {[%clk 0:02:10.9]} 17. Re1 {[%clk 0:02:23.7]} 17... h5 {[%clk
0:02:10.2]} 18. b3 {[%clk 0:02:15.3]} 18... h4 {[%clk 0:02:09.8]} 19. Kb2 {[%clk
0:02:13.9]} 19... Rag8 {[%clk 0:02:08.7]} 20. c4 {[%clk 0:01:39.2]} 20... b4
{[%clk 0:01:48.2]} 21. a3 {[%clk 0:01:32.7]} 21... bxa3+ {[%clk 0:01:31]} 22.
Kxa3 {[%clk 0:01:33.6]} 22... Rg4 {[%clk 0:01:30.3]} 23. Rf2 {[%clk 0:01:26.8]}
23... Rhg8 {[%clk 0:01:23.4]} 24. Ree2 {[%clk 0:01:21]} 24... a5 {[%clk
0:01:22.2]} 25. Bc2 {[%clk 0:01:15.5]} 25... Kd7 {[%clk 0:01:16.2]} 26. Rd2
{[%clk 0:01:14.2]} 26... Kc7 {[%clk 0:01:15.7]} 27. Bd1 {[%clk 0:01:11.9]} 27...
R4g7 {[%clk 0:01:13]} 28. Bc2 {[%clk 0:01:08]} 28... f5 {[%clk 0:01:03.9]} 29.
exf5 {[%clk 0:01:01.5]} 29... Rxg2 {[%clk 0:01:03.7]} 30. fxe6 {[%clk
0:00:56.7]} 30... fxe6 {[%clk 0:01:02.8]} 31. Rxg2 {[%clk 0:00:37.2]} 31... Rxg2
{[%clk 0:01:01.6]} 32. Rxg2 {[%clk 0:00:37]} 32... Bxg2 {[%clk 0:01:01.5]} 33.
b4 {[%clk 0:00:36.8]} 33... Kb6 {[%clk 0:00:56.2]} 34. Bb3 {[%clk 0:00:30.3]}
34... Bh3 {[%clk 0:00:44.3]} 35. Ka4 {[%clk 0:00:26.9]} 35... axb4 {[%clk
0:00:41.7]} 36. Kxb4 {[%clk 0:00:27.8]} 36... Bf5 {[%clk 0:00:39.6]} 37. Ba4
{[%clk 0:00:27.3]} 37... Bg6 {[%clk 0:00:27]} 38. Bd7 {[%clk 0:00:24.5]} 38...
Bf7 {[%clk 0:00:24.3]} 39. Ba4 {[%clk 0:00:22.2]} 39... Bh5 {[%clk 0:00:20.7]}
40. Bd7 {[%clk 0:00:21.4]} 40... Bg4 {[%clk 0:00:20.8]} 41. Ba4 {[%clk
0:00:20.4]} 41... Kc7 {[%clk 0:00:20.7]} 42. Kc3 {[%clk 0:00:20.1]} 42... Kd8
{[%clk 0:00:20.2]} 43. Kd4 {[%clk 0:00:20.1]} 43... Ke7 {[%clk 0:00:20.5]} 44.
Bc6 {[%clk 0:00:19.8]} 44... Kf6 {[%clk 0:00:20.5]} 45. Ke3 {[%clk 0:00:20.1]}
45... Bh3 {[%clk 0:00:20.2]} 46. Bd7 {[%clk 0:00:19.6]} 46... Bf1 {[%clk
0:00:20]} 47. Kd4 {[%clk 0:00:16.8]} 47... Kf5 {[%clk 0:00:19.2]} 48. c5 {[%clk
0:00:15.7]} 48... dxc5+ {[%clk 0:00:19]} 49. Kxc5 {[%clk 0:00:16.6]} 49... Bh3
{[%clk 0:00:18.8]} 50. Kd6 {[%clk 0:00:06.9]} 50... Kxf4 {[%clk 0:00:18.9]} 51.
Bxe6 {[%clk 0:00:04.5]} 51... Bxe6 {[%clk 0:00:18.3]} 52. Kxe6 {[%clk
0:00:05.4]} 52... Kf3 {[%clk 0:00:18.5]} 53. Kf5 {[%clk 0:00:05.5]} 53... h3
{[%clk 0:00:17.3]} 54. Ke5 {[%clk 0:00:03.5]} 54... Kg2 {[%clk 0:00:17.5]} 55.
Kf4 {[%clk 0:00:02.8]} 55... Kxh2 {[%clk 0:00:17.8]} 0-1

[Event "*** Titled Tuesday Blitz"]
[Site "Chess.com"]
[Date "2021.03.16"]
[Round "7"]
[White "esrosenberg"]
[Black "Fischerev7"]
[Result "0-1"]
[WhiteElo "2218"]
[BlackElo "2398"]
[TimeControl "180+1"]
[EndTime "11:18:27 PDT"]
[Termination "Fischerev7 won by checkmate"]

1. Nf3 {[%clk 0:03:00.9]} 1... Nf6 {[%clk 0:02:53.7]} 2. c4 {[%clk 0:03:00.6]}
2... c5 {[%clk 0:02:51.8]} 3. Nc3 {[%clk 0:02:59.3]} 3... Nc6 {[%clk 0:02:51.8]}
4. g3 {[%clk 0:02:59.7]} 4... g6 {[%clk 0:02:51.6]} 5. Bg2 {[%clk 0:03:00.2]}
5... Bg7 {[%clk 0:02:51.7]} 6. O-O {[%clk 0:03:00.7]} 6... O-O {[%clk
0:02:52.1]} 7. d4 {[%clk 0:03:01.2]} 7... cxd4 {[%clk 0:02:39.9]} 8. Nxd4 {[%clk
0:03:02.1]} 8... a6 {[%clk 0:02:39.7]} 9. Nc2 {[%clk 0:02:49.4]} 9... d6 {[%clk
0:02:37.5]} 10. Na3 {[%clk 0:02:38.2]} 10... h6 {[%clk 0:02:33.5]} 11. e4 {[%clk
0:02:26.9]} 11... Be6 {[%clk 0:02:27.5]} 12. h3 {[%clk 0:02:23.9]} 12... Qc8
{[%clk 0:02:20.9]} 13. Kh2 {[%clk 0:02:22.6]} 13... Ne5 {[%clk 0:02:17.7]} 14.
b3 {[%clk 0:02:09.7]} 14... b5 {[%clk 0:02:17.1]} 15. Nd5 {[%clk 0:02:05.3]}
15... Bxd5 {[%clk 0:02:05.7]} 16. exd5 {[%clk 0:02:01.9]} 16... bxc4 {[%clk
0:02:05.7]} 17. f4 {[%clk 0:01:32.8]} 17... Neg4+ {[%clk 0:01:44.5]} 18. Kh1
{[%clk 0:01:08.3]} 18... Nh5 {[%clk 0:01:27.8]} 19. hxg4 {[%clk 0:00:51.1]}
19... Nxg3+ {[%clk 0:01:25.9]} 20. Kg1 {[%clk 0:00:44.5]} 20... Nxf1 {[%clk
0:01:24.7]} 21. Rb1 {[%clk 0:00:37]} 21... Ng3 {[%clk 0:01:01.6]} 22. Qf3 {[%clk
0:00:27.4]} 22... c3 {[%clk 0:00:39.1]} 23. Nc2 {[%clk 0:00:24.5]} 23... h5
{[%clk 0:00:27]} 24. Qxg3 {[%clk 0:00:24.1]} 24... hxg4 {[%clk 0:00:27.1]} 25.
Be3 {[%clk 0:00:21.6]} 25... Qf5 {[%clk 0:00:26]} 26. Rc1 {[%clk 0:00:19.3]}
26... Rac8 {[%clk 0:00:24.6]} 27. Nd4 {[%clk 0:00:12.9]} 27... Qd3 {[%clk
0:00:21.9]} 28. Nc6 {[%clk 0:00:10.7]} 28... Rxc6 {[%clk 0:00:11.7]} 29. dxc6
{[%clk 0:00:11]} 29... Bd4 {[%clk 0:00:12.1]} 30. Bxd4 {[%clk 0:00:10.3]} 30...
Qxg3 {[%clk 0:00:11.7]} 31. Rxc3 {[%clk 0:00:07.5]} 31... Qe1+ {[%clk
0:00:09.4]} 32. Bf1 {[%clk 0:00:07.8]} 32... Qe4 {[%clk 0:00:08.4]} 33. Bf2
{[%clk 0:00:05.9]} 33... g3 {[%clk 0:00:07.6]} 34. Rxg3 {[%clk 0:00:05.8]} 34...
Qxc6 {[%clk 0:00:07.4]} 35. Bg2 {[%clk 0:00:06]} 35... Qc1+ {[%clk 0:00:07.6]}
36. Kh2 {[%clk 0:00:06.3]} 36... Qxf4 {[%clk 0:00:07.7]} 37. Be3 {[%clk
0:00:06]} 37... Qh4+ {[%clk 0:00:07.5]} 38. Bh3 {[%clk 0:00:06.6]} 38... Rc8
{[%clk 0:00:06.3]} 39. Rg4 {[%clk 0:00:05.3]} 39... Rc2+ {[%clk 0:00:06.1]} 40.
Rg2 {[%clk 0:00:03.9]} 40... Qe4 {[%clk 0:00:04.7]} 41. Rxc2 {[%clk 0:00:02.5]}
41... Qxc2+ {[%clk 0:00:05.6]} 42. Kg3 {[%clk 0:00:03]} 42... Qd3 {[%clk
0:00:05.6]} 43. Kf3 {[%clk 0:00:03.1]} 43... Qc2 {[%clk 0:00:05.5]} 44. a4
{[%clk 0:00:03]} 44... Qxb3 {[%clk 0:00:05.5]} 45. a5 {[%clk 0:00:03]} 45... Qb5
{[%clk 0:00:05.3]} 46. Bg2 {[%clk 0:00:02.5]} 46... Qd5+ {[%clk 0:00:04.7]} 47.
Kf2 {[%clk 0:00:03.4]} 47... Qxa5 {[%clk 0:00:05.2]} 48. Be4 {[%clk 0:00:03.8]}
48... Qa2+ {[%clk 0:00:05.6]} 49. Kf3 {[%clk 0:00:04.2]} 49... Qa3 {[%clk
0:00:05.8]} 50. Kf4 {[%clk 0:00:04.2]} 50... a5 {[%clk 0:00:06.2]} 51. Bd4
{[%clk 0:00:04.2]} 51... Qb4 {[%clk 0:00:06.3]} 52. Be3 {[%clk 0:00:04.4]} 52...
d5 {[%clk 0:00:06.8]} 53. Ke5 {[%clk 0:00:04.6]} 53... Qxe4# {[%clk 0:00:07.4]}
0-1

[Event "*** Titled Tuesday Blitz"]
[Site "Chess.com"]
[Date "2021.03.16"]
[Round "7"]
[White "sokidze"]
[Black "Das_Virus_2020"]
[Result "1-0"]
[WhiteElo "2694"]
[BlackElo "2475"]
[TimeControl "180+1"]
[EndTime "11:18:29 PDT"]
[Termination "sokidze won by resignation"]

1. d4 {[%clk 0:03:00.8]} 1... Nf6 {[%clk 0:02:58.6]} 2. g3 {[%clk 0:03:01]} 2...
c5 {[%clk 0:02:57]} 3. d5 {[%clk 0:03:01.3]} 3... b5 {[%clk 0:02:51]} 4. Bg2
{[%clk 0:03:01.1]} 4... d6 {[%clk 0:02:51.2]} 5. e4 {[%clk 0:03:01.4]} 5... g6
{[%clk 0:02:50.3]} 6. f4 {[%clk 0:02:47.4]} 6... Bg7 {[%clk 0:02:46.1]} 7. e5
{[%clk 0:02:47.3]} 7... Ng4 {[%clk 0:02:40.3]} 8. e6 {[%clk 0:02:40.8]} 8... Nf6
{[%clk 0:02:34.9]} 9. exf7+ {[%clk 0:02:40.8]} 9... Kxf7 {[%clk 0:02:35.8]} 10.
Nf3 {[%clk 0:02:41.5]} 10... Re8 {[%clk 0:02:23.2]} 11. O-O {[%clk 0:02:35.8]}
11... Kg8 {[%clk 0:02:22.5]} 12. Re1 {[%clk 0:02:25.8]} 12... a5 {[%clk
0:02:20.4]} 13. Nc3 {[%clk 0:02:12.7]} 13... b4 {[%clk 0:02:19.1]} 14. Ne4
{[%clk 0:02:13.2]} 14... Nxe4 {[%clk 0:02:16.8]} 15. Rxe4 {[%clk 0:02:14.1]}
15... Nd7 {[%clk 0:02:17]} 16. Re1 {[%clk 0:02:02.3]} 16... Nf6 {[%clk
0:02:15.2]} 17. Ng5 {[%clk 0:01:59.8]} 17... a4 {[%clk 0:01:37.3]} 18. Rb1
{[%clk 0:01:54.1]} 18... Bf5 {[%clk 0:01:34.5]} 19. Ne6 {[%clk 0:01:32.9]} 19...
Qb6 {[%clk 0:01:29.9]} 20. Nxg7 {[%clk 0:01:28.8]} 20... Kxg7 {[%clk 0:01:30.8]}
21. Ra1 {[%clk 0:01:29.2]} 21... Ng4 {[%clk 0:01:21.1]} 22. c4 {[%clk
0:00:59.1]} 22... bxc3 {[%clk 0:01:16.1]} 23. bxc3 {[%clk 0:00:59.7]} 23... c4+
{[%clk 0:01:13.6]} 24. Qd4+ {[%clk 0:00:59.6]} 24... Qxd4+ {[%clk 0:01:13.5]}
25. cxd4 {[%clk 0:01:00.5]} 25... Nf6 {[%clk 0:01:09.4]} 26. Ba3 {[%clk
0:00:56]} 26... Kf7 {[%clk 0:01:06.5]} 27. Rac1 {[%clk 0:00:53.2]} 27... Rec8
{[%clk 0:01:04.8]} 28. Bb4 {[%clk 0:00:47.8]} 28... h5 {[%clk 0:00:59.9]} 29. a3
{[%clk 0:00:47.4]} 29... c3 {[%clk 0:00:29.2]} 30. Rxc3 {[%clk 0:00:40.5]} 30...
Rxc3 {[%clk 0:00:28.6]} 31. Bxc3 {[%clk 0:00:41.4]} 31... Rc8 {[%clk 0:00:28.7]}
32. Bb4 {[%clk 0:00:32.2]} 32... Rc4 {[%clk 0:00:25.9]} 33. Rd1 {[%clk
0:00:27.7]} 33... Rc2 {[%clk 0:00:24.2]} 34. Rd2 {[%clk 0:00:26.6]} 34... Rxd2
{[%clk 0:00:21.2]} 35. Bxd2 {[%clk 0:00:26.2]} 35... Be4 {[%clk 0:00:20.8]} 36.
Bf1 {[%clk 0:00:16.5]} 36... Bxd5 {[%clk 0:00:20.4]} 37. Bb5 {[%clk 0:00:11.4]}
37... Bb3 {[%clk 0:00:20.2]} 38. Kf2 {[%clk 0:00:10.5]} 38... Nd5 {[%clk
0:00:19.6]} 39. Kf3 {[%clk 0:00:09]} 39... Nb6 {[%clk 0:00:18.5]} 40. Bb4 {[%clk
0:00:08.3]} 40... Ke6 {[%clk 0:00:17.6]} 41. Ke4 {[%clk 0:00:08.1]} 41... Bc2+
{[%clk 0:00:16.9]} 42. Ke3 {[%clk 0:00:08.5]} 42... Nd5+ {[%clk 0:00:16.6]} 43.
Kd2 {[%clk 0:00:08.2]} 43... Nxb4 {[%clk 0:00:15.4]} 44. axb4 {[%clk 0:00:09]}
44... Bb3 {[%clk 0:00:15.6]} 45. Kc3 {[%clk 0:00:09]} 45... Kd5 {[%clk
0:00:12.5]} 46. Bd3 {[%clk 0:00:09.2]} 46... e5 {[%clk 0:00:09.8]} 47. dxe5
{[%clk 0:00:08.5]} 47... dxe5 {[%clk 0:00:10.1]} 48. fxe5 {[%clk 0:00:09.4]}
48... Kxe5 {[%clk 0:00:10]} 49. Bxg6 {[%clk 0:00:10]} 49... Bd5 {[%clk
0:00:06.2]} 50. Bxh5 {[%clk 0:00:09.3]} 50... a3 {[%clk 0:00:06.3]} 51. Be2
{[%clk 0:00:06.9]} 1-0

[Event "*** Titled Tuesday Blitz"]
[Site "Chess.com"]
[Date "2021.03.16"]
[Round "7"]
[White "anon102030"]
[Black "NiranjanNavalgund"]
[Result "1-0"]
[WhiteElo "2707"]
[BlackElo "2524"]
[TimeControl "180+1"]
[EndTime "11:18:30 PDT"]
[Termination "anon102030 won by resignation"]

1. e4 {[%clk 0:03:00.8]} 1... e5 {[%clk 0:02:59.9]} 2. Nf3 {[%clk 0:02:58.9]}
2... Nc6 {[%clk 0:03:00.5]} 3. Bc4 {[%clk 0:02:58.4]} 3... Nf6 {[%clk
0:03:00.6]} 4. d3 {[%clk 0:02:54.5]} 4... h6 {[%clk 0:03:00.5]} 5. Nc3 {[%clk
0:02:51.1]} 5... d6 {[%clk 0:03:00.5]} 6. h3 {[%clk 0:02:50.5]} 6... a6 {[%clk
0:02:59.6]} 7. O-O {[%clk 0:02:50.5]} 7... g5 {[%clk 0:02:57.9]} 8. Bxg5 {[%clk
0:02:27]} 8... hxg5 {[%clk 0:02:53.2]} 9. Nxg5 {[%clk 0:02:27.9]} 9... Be6
{[%clk 0:02:42.8]} 10. Nxe6 {[%clk 0:02:21.9]} 10... fxe6 {[%clk 0:02:43.7]} 11.
Bxe6 {[%clk 0:02:22.3]} 11... Qe7 {[%clk 0:02:43.1]} 12. Bg4 {[%clk 0:02:05.3]}
12... Nxg4 {[%clk 0:02:35]} 13. Qxg4 {[%clk 0:02:06.2]} 13... Qd7 {[%clk
0:02:32.6]} 14. Qg6+ {[%clk 0:02:01.7]} 14... Qf7 {[%clk 0:02:32.4]} 15. Qxf7+
{[%clk 0:01:55.3]} 15... Kxf7 {[%clk 0:02:33.3]} 16. Nd5 {[%clk 0:01:52.1]}
16... Rc8 {[%clk 0:02:30.4]} 17. f4 {[%clk 0:01:52.4]} 17... exf4 {[%clk
0:02:29.8]} 18. Rxf4+ {[%clk 0:01:52.3]} 18... Kg7 {[%clk 0:02:29.8]} 19. Rg4+
{[%clk 0:01:50.5]} 19... Kh6 {[%clk 0:02:17.5]} 20. Rf1 {[%clk 0:01:51.4]} 20...
Ne5 {[%clk 0:01:51.4]} 21. Rf6+ {[%clk 0:01:41]} 21... Kh7 {[%clk 0:01:49.3]}
22. Rg5 {[%clk 0:01:11.2]} 22... c6 {[%clk 0:01:35.2]} 23. Nf4 {[%clk
0:00:50.5]} 23... Bh6 {[%clk 0:01:16.8]} 24. Rg3 {[%clk 0:00:34.9]} 24... Rhf8
{[%clk 0:00:59.4]} 25. Nh5 {[%clk 0:00:31.6]} 25... Rxf6 {[%clk 0:00:59.5]} 26.
Nxf6+ {[%clk 0:00:32.5]} 26... Kh8 {[%clk 0:01:00]} 27. d4 {[%clk 0:00:29.7]}
27... Bf4 {[%clk 0:00:50.4]} 28. Rb3 {[%clk 0:00:26.1]} 28... Nf7 {[%clk
0:00:37.4]} 29. Rxb7 {[%clk 0:00:25]} 29... Rf8 {[%clk 0:00:34.4]} 30. c3 {[%clk
0:00:22.6]} 30... Bc1 {[%clk 0:00:28]} 31. h4 {[%clk 0:00:16.5]} 31... Kg7
{[%clk 0:00:27.9]} 32. Nh5+ {[%clk 0:00:12.7]} 32... Kg6 {[%clk 0:00:28.2]} 33.
Ng3 {[%clk 0:00:13.6]} 33... Be3+ {[%clk 0:00:26.3]} 34. Kh1 {[%clk 0:00:12.7]}
34... Bf2 {[%clk 0:00:19.6]} 35. h5+ {[%clk 0:00:13.6]} 35... Kg5 {[%clk
0:00:18.7]} 36. Nf5 {[%clk 0:00:14.5]} 36... Rh8 {[%clk 0:00:17.1]} 37. g4
{[%clk 0:00:12.6]} 37... Kxg4 {[%clk 0:00:15.7]} 38. Rxf7 {[%clk 0:00:12]} 38...
Rxh5+ {[%clk 0:00:11.5]} 39. Kg2 {[%clk 0:00:12.6]} 39... Be1 {[%clk 0:00:11.1]}
40. Nxd6 {[%clk 0:00:12.1]} 40... Bd2 {[%clk 0:00:07.9]} 41. e5 {[%clk 0:00:09]}
41... Be3 {[%clk 0:00:07.4]} 42. Ne4 {[%clk 0:00:08.8]} 42... Rh8 {[%clk
0:00:06.1]} 43. Rf6 {[%clk 0:00:08.3]} 43... Bf4 {[%clk 0:00:05.9]} 44. Nf2+
{[%clk 0:00:07.5]} 44... Kg5 {[%clk 0:00:05.8]} 45. Nh3+ {[%clk 0:00:08.4]}
45... Rxh3 {[%clk 0:00:03.9]} 46. Kxh3 {[%clk 0:00:09.3]} 46... Bc1 {[%clk
0:00:04.2]} 47. Rxc6 {[%clk 0:00:09]} 47... Bxb2 {[%clk 0:00:04.6]} 48. Rxa6
{[%clk 0:00:09.9]} 48... Bxc3 {[%clk 0:00:04.4]} 49. e6 {[%clk 0:00:10.6]} 49...
Kf6 {[%clk 0:00:04.4]} 50. d5 {[%clk 0:00:11.5]} 50... Be5 {[%clk 0:00:05]} 51.
Ra7 {[%clk 0:00:11.7]} 51... Bd6 {[%clk 0:00:05]} 52. Rf7+ {[%clk 0:00:12.6]}
52... Kg6 {[%clk 0:00:05.5]} 53. Rd7 {[%clk 0:00:12.5]} 53... Bc5 {[%clk
0:00:05.4]} 54. a4 {[%clk 0:00:13.4]} 54... Be7 {[%clk 0:00:06]} 55. a5 {[%clk
0:00:13.6]} 55... Bc5 {[%clk 0:00:06.9]} 56. a6 {[%clk 0:00:14.5]} 56... Kf6
{[%clk 0:00:07.2]} 57. a7 {[%clk 0:00:14.5]} 57... Bxa7 {[%clk 0:00:08.1]} 58.
Rxa7 {[%clk 0:00:14.9]} 58... Ke5 {[%clk 0:00:07.8]} 59. e7 {[%clk 0:00:15.8]}
59... Kd6 {[%clk 0:00:08.7]} 60. e8=Q {[%clk 0:00:15.7]} 60... Kxd5 {[%clk
0:00:09.6]} 61. Rd7+ {[%clk 0:00:15.8]} 1-0